[Event "FIDE World Rapid Chess Championship 2021"]
[White "Zilka, Stepan"]
[Black "Wieczorek, Oskar"]
[WhiteFideId "315303"]
[BlackFideId "1133950"]
[WhiteElo "2474"]
[BlackElo "2367"]
[Result "1/2-1/2"]
[Round "10"]
[TimeControl "900+10"]
[Date "2021.12.28"]
[WhiteClock "0:01:24"]
[BlackClock "0:00:43"]

1. e4 {[%clk 0:15:23]}  c5 {[%clk 0:15:55]} 2. Nf3 {[%clk 0:15:23]}  g6 {[%clk 0:15:55]} 3. d4 {[%clk 0:15:23]}  cxd4 {[%clk 0:15:55]} 4. Nxd4 {[%clk 0:15:23]}  Nc6 {[%clk 0:15:55]} 5. c4 {[%clk 0:15:23]}  Nf6 {[%clk 0:15:55]} 6. Nc3 {[%clk 0:15:23]}  d6 {[%clk 0:15:55]} 7. Be2 {[%clk 0:15:23]}  Nxd4 {[%clk 0:15:55]} 8. Qxd4 {[%clk 0:15:23]}  Bg7 {[%clk 0:15:55]} 9. Be3 {[%clk 0:15:23]}  O-O {[%clk 0:15:55]} 10. Qd2 {[%clk 0:15:23]}  a5 {[%clk 0:15:55]} 11. O-O {[%clk 0:15:23]}  a4 {[%clk 0:15:55]} 12. h3 {[%clk 0:15:23]}  Qa5 {[%clk 0:14:13]} 13. Rab1 {[%clk 0:14:56]}  Be6 {[%clk 0:14:13]} 14. Rfc1 {[%clk 0:14:56]}  Rfc8 {[%clk 0:14:13]} 15. b3 {[%clk 0:14:56]}  axb3 {[%clk 0:14:13]} 16. axb3 {[%clk 0:14:56]}  Qb4 {[%clk 0:12:32]} 17. Qe1 {[%clk 0:15:13]}  h5 {[%clk 0:10:59]} 18. Bd2 {[%clk 0:15:22]}  Qb6 {[%clk 0:06:27]} 19. Bf1 {[%clk 0:15:10]}  Nd7 {[%clk 0:04:58]} 20. Nb5 {[%clk 0:13:42]}  Ra2 {[%clk 0:04:58]} 21. Be3 {[%clk 0:13:42]}  Qd8 {[%clk 0:04:39]} 22. b4 {[%clk 0:11:48]}  Ne5 {[%clk 0:04:39]} 23. c5 {[%clk 0:11:48]}  dxc5 {[%clk 0:03:23]} 24. Rd1 {[%clk 0:10:46]}  Qe8 {[%clk 0:03:23]} 25. bxc5 {[%clk 0:10:46]}  Nc4 {[%clk 0:03:23]} 26. Bd4 {[%clk 0:10:46]}  Bh6 {[%clk 0:01:06]} 27. Bxc4 {[%clk 0:05:51]}  Bxc4 {[%clk 0:01:15]} 28. Nc3 {[%clk 0:05:51]}  Rc2 {[%clk 0:01:15]} 29. Rxb7 {[%clk 0:05:51]}  Rd8 {[%clk 0:01:15]} 30. Nd5 {[%clk 0:03:22]}  Re2 {[%clk 0:00:43]} 31. Qc3 {[%clk 0:03:22]}  Bxd5 {[%clk 0:00:43]} 32. exd5 {[%clk 0:03:22]}  e5 {[%clk 0:00:43]} 33. dxe6 {[%clk 0:02:49]}  Rxe6 {[%clk 0:00:14]} 34. Rdb1 {[%clk 0:02:49]}  Bf4 {[%clk 0:00:14]} 35. g3 {[%clk 0:02:49]}  Bh6 {[%clk 0:00:14]} 36. h4 {[%clk 0:02:49]}  Bf8 {[%clk 0:00:57]} 37. R7b6 {[%clk 0:02:16]}  Re4 {[%clk 0:00:57]} 38. Be3 {[%clk 0:02:16]}  Bg7 {[%clk 0:00:57]} 39. Qb3 {[%clk 0:02:16]}  Kh7 {[%clk 0:00:57]} 40. Rb7 {[%clk 0:02:16]}  Re6 {[%clk 0:00:57]} 41. Rb6 {[%clk 0:02:16]}  Re4 {[%clk 0:00:57]} 42. Rb7 {[%clk 0:02:16]}  Re6 {[%clk 0:00:57]} 43. Rb8 {[%clk 0:02:16]}  Rxb8 {[%clk 0:00:57]} 44. Qxb8 {[%clk 0:02:16]}  Rxe3 {[%clk 0:00:57]} 45. fxe3 {[%clk 0:02:16]}  Qxe3+ {[%clk 0:00:57]} 46. Kg2 {[%clk 0:01:24]}  Qe4+ {[%clk 0:00:43]} 47. Kh3 {[%clk 0:01:24]}  Qg4+ {[%clk 0:00:43]} 48. Kg2 {[%clk 0:01:24]}  Qe2+ {[%clk 0:00:43]} 49. Kh3 {[%clk 0:01:24]}  Qg4+ {[%clk 0:00:43]} 50. Kg2 {[%clk 0:01:24]}  Qe2+ {[%clk 0:00:43]} 51. Kh3 {[%clk 0:01:24]}  Qe6+ {[%clk 0:00:43]} 52. Kh2 {[%clk 0:01:24]}  Qe2+ {[%clk 0:00:43]} 53. Kh3 {[%clk 0:01:24]} 1/2-1/2


[Site "http://www.Chess.com"]

[Event "FIDE World Rapid Chess Championship 2021"]
[White "Sindarov, Javokhir"]
[Black "Postny, Evgeny"]
[WhiteFideId "14205483"]
[BlackFideId "2804344"]
[WhiteElo "2353"]
[BlackElo "2454"]
[Result "1-0"]
[Round "10"]
[TimeControl "900+10"]
[Date "2021.12.28"]
[WhiteClock "0:08:27"]
[BlackClock "0:10:11"]

1. Nf3 {[%clk 0:15:00]}  d5 {[%clk 0:15:00]} 2. g3 {[%clk 0:15:00]}  c6 {[%clk 0:15:00]} 3. Bg2 {[%clk 0:15:08]}  Bg4 {[%clk 0:15:49]} 4. O-O {[%clk 0:15:08]}  Nd7 {[%clk 0:15:49]} 5. d3 {[%clk 0:15:08]}  Ngf6 {[%clk 0:15:49]} 6. Nbd2 {[%clk 0:15:08]}  e5 {[%clk 0:15:49]} 7. e4 {[%clk 0:15:08]}  dxe4 {[%clk 0:15:49]} 8. dxe4 {[%clk 0:15:08]}  Be7 {[%clk 0:15:49]} 9. Qe1 {[%clk 0:15:08]}  h6 {[%clk 0:15:10]} 10. b3 {[%clk 0:12:21]}  Be6 {[%clk 0:15:10]} 11. Bb2 {[%clk 0:12:21]}  Qc7 {[%clk 0:15:10]} 12. Nh4 {[%clk 0:10:17]}  O-O-O {[%clk 0:15:18]} 13. Qe2 {[%clk 0:10:17]}  Bg4 {[%clk 0:12:32]} 14. Bf3 {[%clk 0:10:03]}  Bh3 {[%clk 0:12:32]} 15. Rfd1 {[%clk 0:10:03]}  g6 {[%clk 0:12:32]} 16. a4 {[%clk 0:10:03]}  Nh7 {[%clk 0:12:32]} 17. Bg2 {[%clk 0:10:03]}  Be6 {[%clk 0:12:17]} 18. Nhf3 {[%clk 0:09:18]}  Ng5 {[%clk 0:12:17]} 19. Nc4 {[%clk 0:09:18]}  Nxf3+ {[%clk 0:12:17]} 20. Bxf3 {[%clk 0:09:18]}  h5 {[%clk 0:12:17]} 21. a5 {[%clk 0:09:18]}  Kb8 {[%clk 0:10:41]} 22. Rxd7 {[%clk 0:08:33]}  Qxd7 {[%clk 0:10:41]} 23. Bxe5+ {[%clk 0:08:33]}  Kc8 {[%clk 0:10:41]} 24. Nb6+ {[%clk 0:08:33]}  axb6 {[%clk 0:10:41]} 25. axb6 {[%clk 0:08:33]}  Qe8 {[%clk 0:10:41]} 26. Ra8+ {[%clk 0:08:33]}  Kd7 {[%clk 0:10:41]} 27. Qd3+ {[%clk 0:08:33]}  Bd5 {[%clk 0:10:41]} 28. exd5 {[%clk 0:08:33]}  Bc5 {[%clk 0:10:11]} 29. dxc6+ {[%clk 0:08:27]}  Ke6 {[%clk 0:10:11]} 30. Bxh8 {[%clk 0:08:27]} 1-0


[Site "http://www.Chess.com"]

[Event "FIDE World Rapid Chess Championship 2021"]
[White "Klimkowski, Jan"]
[Black "Krasenkow, Michal"]
[WhiteFideId "21856222"]
[BlackFideId "1113100"]
[WhiteElo "2211"]
[BlackElo "2430"]
[Result "1-0"]
[Round "10"]
[TimeControl "900+10"]
[Date "2021.12.28"]
[WhiteClock "0:00:47"]
[BlackClock "0:00:00"]

1. e4 {[%clk 0:15:00]}  g6 {[%clk 0:15:00]} 2. d4 {[%clk 0:15:00]}  Bg7 {[%clk 0:15:00]} 3. Nc3 {[%clk 0:15:00]}  d6 {[%clk 0:15:00]} 4. Be3 {[%clk 0:14:46]}  a6 {[%clk 0:15:28]} 5. Qd2 {[%clk 0:14:46]}  b5 {[%clk 0:15:28]} 6. O-O-O {[%clk 0:14:46]}  Bb7 {[%clk 0:15:28]} 7. f3 {[%clk 0:14:46]}  Nd7 {[%clk 0:15:28]} 8. Kb1 {[%clk 0:14:46]}  c5 {[%clk 0:15:28]} 9. h4 {[%clk 0:14:46]}  cxd4 {[%clk 0:14:51]} 10. Bxd4 {[%clk 0:13:30]}  Bxd4 {[%clk 0:14:51]} 11. Qxd4 {[%clk 0:13:30]}  Ngf6 {[%clk 0:14:51]} 12. h5 {[%clk 0:13:30]}  g5 {[%clk 0:14:51]} 13. Nge2 {[%clk 0:13:30]}  Qb6 {[%clk 0:14:51]} 14. Qd2 {[%clk 0:13:30]}  h6 {[%clk 0:14:51]} 15. Nd4 {[%clk 0:12:44]}  Nc5 {[%clk 0:11:12]} 16. Nf5 {[%clk 0:12:12]}  b4 {[%clk 0:11:12]} 17. Nd5 {[%clk 0:12:12]}  Bxd5 {[%clk 0:11:12]} 18. exd5 {[%clk 0:12:12]}  Nfd7 {[%clk 0:11:12]} 19. g3 {[%clk 0:12:01]}  Ne5 {[%clk 0:09:43]} 20. Qd4 {[%clk 0:11:15]}  Ncd7 {[%clk 0:09:39]} 21. f4 {[%clk 0:08:15]}  Qxd4 {[%clk 0:09:39]} 22. Rxd4 {[%clk 0:06:46]}  Nf3 {[%clk 0:03:37]} 23. Rd3 {[%clk 0:06:46]}  g4 {[%clk 0:03:37]} 24. Re3 {[%clk 0:06:46]}  Nb6 {[%clk 0:03:37]} 25. Rxe7+ {[%clk 0:05:50]}  Kf8 {[%clk 0:03:08]} 26. Rb7 {[%clk 0:03:16]}  Nxd5 {[%clk 0:03:21]} 27. Kc1 {[%clk 0:03:16]}  Rc8 {[%clk 0:00:32]} 28. Nxd6 {[%clk 0:02:33]}  Rc7 {[%clk 0:00:32]} 29. Rb8+ {[%clk 0:02:33]}  Kg7 {[%clk 0:00:32]} 30. Nf5+ {[%clk 0:02:33]}  Kh7 {[%clk 0:00:32]} 31. Rxh8+ {[%clk 0:01:18]}  Kxh8 {[%clk 0:00:41]} 32. Bd3 {[%clk 0:01:18]}  a5 {[%clk 0:00:41]} 33. Rd1 {[%clk 0:01:18]}  Nf6 {[%clk 0:00:41]} 34. Nxh6 {[%clk 0:00:47]}  a4 {[%clk 0:00:11]} 35. Nf5 {[%clk 0:00:47]}  b3 {[%clk 0:00:11]} 36. axb3 {[%clk 0:00:47]}  axb3 {[%clk 0:00:11]} 37. Kb1 {[%clk 0:00:47]}  Kg8 {[%clk 0:00:11]} 38. cxb3 {[%clk 0:00:47]}  Nxh5 {[%clk 0:00:11]} 39. Bc2 {[%clk 0:00:47]}  f6 {[%clk 0:00:11]} 40. b4 {[%clk 0:00:47]}  Kf7 {[%clk 0:00:11]} 41. b5 {[%clk 0:00:47]}  Ng7 {[%clk 0:00:00]} 42. b6 {[%clk 0:00:47]} 1-0


[Site "http://www.Chess.com"]

[Event "FIDE World Rapid Chess Championship 2021"]
[White "Kolosowski, Mateusz"]
[Black "Lima, Darcy"]
[WhiteFideId "1129708"]
[BlackFideId "2100045"]
[WhiteElo "2371"]
[BlackElo "2505"]
[Result "0-1"]
[Round "10"]
[TimeControl "900+10"]
[Date "2021.12.28"]
[WhiteClock "0:00:31"]
[BlackClock "0:03:05"]

1. e4 {[%clk 0:15:00]}  Nf6 {[%clk 0:15:00]} 2. e5 {[%clk 0:15:00]}  Nd5 {[%clk 0:15:52]} 3. d4 {[%clk 0:15:42]}  d6 {[%clk 0:15:52]} 4. Nf3 {[%clk 0:15:42]}  Bg4 {[%clk 0:15:52]} 5. Be2 {[%clk 0:15:42]}  c6 {[%clk 0:15:52]} 6. O-O {[%clk 0:15:42]}  Bxf3 {[%clk 0:15:52]} 7. Bxf3 {[%clk 0:15:42]}  dxe5 {[%clk 0:15:52]} 8. dxe5 {[%clk 0:15:42]}  e6 {[%clk 0:15:52]} 9. Qe2 {[%clk 0:15:42]}  Nd7 {[%clk 0:15:52]} 10. b3 {[%clk 0:13:40]}  Qc7 {[%clk 0:15:46]} 11. Bb2 {[%clk 0:09:22]}  Nf4 {[%clk 0:13:07]} 12. Qe4 {[%clk 0:09:22]}  Ng6 {[%clk 0:13:07]} 13. Re1 {[%clk 0:09:22]}  Rd8 {[%clk 0:13:07]} 14. g3 {[%clk 0:09:22]}  a5 {[%clk 0:13:07]} 15. a3 {[%clk 0:09:22]}  Be7 {[%clk 0:12:42]} 16. Ra2 {[%clk 0:08:12]}  O-O {[%clk 0:10:55]} 17. Bh5 {[%clk 0:06:47]}  Bc5 {[%clk 0:09:10]} 18. b4 {[%clk 0:05:48]}  Ba7 {[%clk 0:07:53]} 19. c4 {[%clk 0:05:48]}  Ne7 {[%clk 0:07:53]} 20. Nd2 {[%clk 0:02:58]}  Nc5 {[%clk 0:06:34]} 21. Qe2 {[%clk 0:02:58]}  Nd3 {[%clk 0:04:29]} 22. c5 {[%clk 0:02:58]}  Nxe1 {[%clk 0:04:29]} 23. Qxe1 {[%clk 0:02:15]}  b6 {[%clk 0:04:17]} 24. Ne4 {[%clk 0:02:15]}  bxc5 {[%clk 0:04:17]} 25. bxc5 {[%clk 0:02:15]}  Rd5 {[%clk 0:04:17]} 26. Qe3 {[%clk 0:02:15]}  Nf5 {[%clk 0:04:17]} 27. Qf4 {[%clk 0:02:15]}  f6 {[%clk 0:03:04]} 28. Bc3 {[%clk 0:00:34]}  fxe5 {[%clk 0:03:04]} 29. Qg5 {[%clk 0:00:34]}  Qe7 {[%clk 0:03:04]} 30. Qc1 {[%clk 0:00:34]}  Bxc5 {[%clk 0:03:04]} 31. Bxa5 {[%clk 0:00:34]}  Bd4 {[%clk 0:03:04]} 32. Bb4 {[%clk 0:00:34]}  c5 {[%clk 0:03:04]} 33. Be1 {[%clk 0:00:34]}  Nd6 {[%clk 0:02:57]} 34. Qb1 {[%clk 0:00:46]}  Qb7 {[%clk 0:02:57]} 35. Qxb7 {[%clk 0:00:46]}  Nxb7 {[%clk 0:02:57]} 36. Bg4 {[%clk 0:00:46]}  Nd8 {[%clk 0:02:57]} 37. Rc2 {[%clk 0:00:46]}  Rf7 {[%clk 0:02:28]} 38. Ba5 {[%clk 0:00:33]}  Re7 {[%clk 0:02:28]} 39. Bf3 {[%clk 0:00:33]}  Nb7 {[%clk 0:02:28]} 40. Be1 {[%clk 0:00:33]}  Rd8 {[%clk 0:02:28]} 41. a4 {[%clk 0:00:33]}  Ra8 {[%clk 0:02:28]} 42. a5 {[%clk 0:00:33]}  Ra7 {[%clk 0:02:28]} 43. Ra2 {[%clk 0:00:33]}  c4 {[%clk 0:02:28]} 44. Bb4 {[%clk 0:00:33]}  Rc7 {[%clk 0:02:28]} 45. a6 {[%clk 0:00:33]}  Nc5 {[%clk 0:02:28]} 46. Bxc5 {[%clk 0:00:33]}  Bxc5 {[%clk 0:02:28]} 47. Be2 {[%clk 0:00:33]}  Bd4 {[%clk 0:02:18]} 48. Nd6 {[%clk 0:00:33]}  Rc6 {[%clk 0:02:18]} 49. Nxc4 {[%clk 0:00:33]}  Rcxa6 {[%clk 0:02:18]} 50. Rxa6 {[%clk 0:00:33]}  Rxa6 {[%clk 0:02:18]} 51. Kg2 {[%clk 0:00:33]}  Ra2 {[%clk 0:02:18]} 52. Kf1 {[%clk 0:00:33]}  e4 {[%clk 0:02:18]} 53. Nd6 {[%clk 0:00:33]}  e3 {[%clk 0:02:18]} 54. fxe3 {[%clk 0:00:33]}  Bxe3 {[%clk 0:02:18]} 55. h4 {[%clk 0:00:33]}  Kf8 {[%clk 0:02:18]} 56. Ne4 {[%clk 0:00:33]}  Ke7 {[%clk 0:02:18]} 57. Bc4 {[%clk 0:00:33]}  Rb2 {[%clk 0:02:18]} 58. Bd3 {[%clk 0:00:33]}  h6 {[%clk 0:02:18]} 59. h5 {[%clk 0:00:31]}  Kd7 {[%clk 0:03:05]} 60. Bc4 {[%clk 0:00:31]}  Rh2 {[%clk 0:03:05]} 61. Be2 {[%clk 0:00:31]}  Kc6 {[%clk 0:03:05]} 62. Bg4 {[%clk 0:00:31]}  Kd5 {[%clk 0:03:05]} 63. Bf3 {[%clk 0:00:31]}  Kd4 {[%clk 0:03:05]} 64. Ke1 {[%clk 0:00:31]}  Kd3 {[%clk 0:03:05]} 65. Kf1 {[%clk 0:00:31]}  Ra2 {[%clk 0:03:05]} 66. g4 {[%clk 0:00:31]}  Rb2 {[%clk 0:03:05]} 0-1


[Site "http://www.Chess.com"]

[Event "FIDE World Rapid Chess Championship 2021"]
[White "Sadzikowski, Daniel"]
[Black "Gajewski, Grzegorz"]
[WhiteFideId "1132253"]
[BlackFideId "1116207"]
[WhiteElo "2414"]
[BlackElo "2496"]
[Result "1/2-1/2"]
[Round "10"]
[TimeControl "900+10"]
[Date "2021.12.28"]
[WhiteClock "0:00:00"]
[BlackClock "0:00:51"]

1. Nf3 {[%clk 0:15:00]}  d5 {[%clk 0:15:00]} 2. g3 {[%clk 0:15:00]}  Nf6 {[%clk 0:14:36]} 3. Bg2 {[%clk 0:15:36]}  c5 {[%clk 0:14:36]} 4. O-O {[%clk 0:15:36]}  g6 {[%clk 0:14:36]} 5. c4 {[%clk 0:15:36]}  Bg7 {[%clk 0:14:36]} 6. cxd5 {[%clk 0:12:25]}  Nxd5 {[%clk 0:15:03]} 7. Nc3 {[%clk 0:12:25]}  O-O {[%clk 0:15:03]} 8. Nxd5 {[%clk 0:12:25]}  Qxd5 {[%clk 0:15:03]} 9. d3 {[%clk 0:12:25]}  Nc6 {[%clk 0:15:03]} 10. Be3 {[%clk 0:12:25]}  Bd7 {[%clk 0:15:03]} 11. d4 {[%clk 0:10:11]}  cxd4 {[%clk 0:11:46]} 12. Nxd4 {[%clk 0:10:18]}  Qa5 {[%clk 0:09:05]} 13. Nxc6 {[%clk 0:10:18]}  Bxc6 {[%clk 0:09:05]} 14. Bxc6 {[%clk 0:10:18]}  bxc6 {[%clk 0:09:05]} 15. Qc2 {[%clk 0:10:18]}  Rab8 {[%clk 0:09:05]} 16. Rfb1 {[%clk 0:10:18]}  Rfd8 {[%clk 0:09:14]} 17. a3 {[%clk 0:06:30]}  a6 {[%clk 0:07:17]} 18. Ra2 {[%clk 0:06:22]}  Qd5 {[%clk 0:07:17]} 19. b4 {[%clk 0:05:53]}  h5 {[%clk 0:04:11]} 20. h4 {[%clk 0:05:53]}  Qe6 {[%clk 0:04:11]} 21. Qb3 {[%clk 0:05:53]}  Rd5 {[%clk 0:04:11]} 22. Rd2 {[%clk 0:04:02]}  Rbd8 {[%clk 0:03:32]} 23. Rxd5 {[%clk 0:04:02]}  cxd5 {[%clk 0:03:32]} 24. Rc1 {[%clk 0:04:02]}  Qg4 {[%clk 0:03:32]} 25. Qd3 {[%clk 0:03:07]}  d4 {[%clk 0:03:00]} 26. Bg5 {[%clk 0:03:07]}  Qe6 {[%clk 0:03:00]} 27. a4 {[%clk 0:03:07]}  Be5 {[%clk 0:03:00]} 28. b5 {[%clk 0:02:57]}  axb5 {[%clk 0:01:10]} 29. axb5 {[%clk 0:02:57]}  Rb8 {[%clk 0:01:10]} 30. Rb1 {[%clk 0:02:57]}  Kg7 {[%clk 0:01:10]} 31. Qe4 {[%clk 0:02:57]}  f5 {[%clk 0:01:10]} 32. Qd3 {[%clk 0:01:41]}  Kf7 {[%clk 0:01:19]} 33. Bf4 {[%clk 0:01:41]}  Bxf4 {[%clk 0:00:51]} 34. gxf4 {[%clk 0:00:00]}  Qf6 {[%clk 0:00:51]} 35. Qc4+ {[%clk 0:00:00]}  Kg7 {[%clk 0:00:51]} 36. Rb4 {[%clk 0:00:00]}  Rd8 {[%clk 0:00:51]} 37. b6 {[%clk 0:00:00]}  Qxh4 {[%clk 0:00:51]} 38. b7 {[%clk 0:00:00]}  Qxf4 {[%clk 0:00:51]} 39. Qc8 {[%clk 0:00:00]}  Qg4+ {[%clk 0:00:51]} 40. Kf1 {[%clk 0:00:00]}  Qh3+ {[%clk 0:00:51]} 41. Kg1 {[%clk 0:00:00]}  Qg4+ {[%clk 0:00:51]} 42. Kf1 {[%clk 0:00:00]}  Qh3+ {[%clk 0:00:51]} 43. Kg1 {[%clk 0:00:00]}  Qg4+ {[%clk 0:00:51]} 1/2-1/2


[Site "http://www.Chess.com"]

[Event "FIDE World Rapid Chess Championship 2021"]
[White "Kanarek, Marcel"]
[Black "Carlsson, Pontus"]
[WhiteFideId "1126822"]
[BlackFideId "1705814"]
[WhiteElo "2296"]
[BlackElo "2436"]
[Result "1/2-1/2"]
[Round "10"]
[TimeControl "900+10"]
[Date "2021.12.28"]
[WhiteClock "0:02:27"]
[BlackClock "0:08:39"]

1. e4 {[%clk 0:15:00]}  c5 {[%clk 0:14:50]} 2. Nf3 {[%clk 0:15:55]}  d6 {[%clk 0:14:50]} 3. d4 {[%clk 0:15:55]}  Nf6 {[%clk 0:14:50]} 4. Nc3 {[%clk 0:15:55]}  cxd4 {[%clk 0:14:50]} 5. Nxd4 {[%clk 0:15:55]}  g6 {[%clk 0:14:50]} 6. Be3 {[%clk 0:15:55]}  Bg7 {[%clk 0:14:50]} 7. f3 {[%clk 0:15:55]}  O-O {[%clk 0:14:50]} 8. Qd2 {[%clk 0:15:55]}  Nc6 {[%clk 0:14:50]} 9. O-O-O {[%clk 0:15:55]}  Bd7 {[%clk 0:14:50]} 10. Kb1 {[%clk 0:15:55]}  Rc8 {[%clk 0:14:50]} 11. h4 {[%clk 0:15:55]}  Ne5 {[%clk 0:14:51]} 12. g4 {[%clk 0:15:56]}  Qa5 {[%clk 0:10:21]} 13. h5 {[%clk 0:10:14]}  Nxf3 {[%clk 0:10:22]} 14. Nxf3 {[%clk 0:10:14]}  Rxc3 {[%clk 0:10:22]} 15. Qxc3 {[%clk 0:07:25]}  Qxc3 {[%clk 0:10:32]} 16. bxc3 {[%clk 0:07:25]}  Bxg4 {[%clk 0:10:32]} 17. Bg2 {[%clk 0:04:01]}  Nxe4 {[%clk 0:10:49]} 18. Rde1 {[%clk 0:04:01]}  Nxc3+ {[%clk 0:10:49]} 19. Kc1 {[%clk 0:04:01]}  Nxa2+ {[%clk 0:10:49]} 20. Kb1 {[%clk 0:02:18]}  Nc3+ {[%clk 0:10:33]} 21. Kc1 {[%clk 0:02:18]}  Na2+ {[%clk 0:08:39]} 22. Kb1 {[%clk 0:02:27]}  Nc3+ {[%clk 0:08:39]} 1/2-1/2


[Site "http://www.Chess.com"]

[Event "FIDE World Rapid Chess Championship 2021"]
[White "Aziz, Husain"]
[Black "Blohberger, Felix"]
[WhiteFideId "12100293"]
[BlackFideId "1632051"]
[WhiteElo "2430"]
[BlackElo "2409"]
[Result "0-1"]
[Round "10"]
[TimeControl "900+10"]
[Date "2021.12.28"]
[WhiteClock "0:01:00"]
[BlackClock "0:00:51"]

1. e4 {[%clk 0:14:23]}  c5 {[%clk 0:16:08]} 2. Nf3 {[%clk 0:14:23]}  d6 {[%clk 0:16:08]} 3. Bb5+ {[%clk 0:14:23]}  Bd7 {[%clk 0:16:08]} 4. Bxd7+ {[%clk 0:14:23]}  Nxd7 {[%clk 0:16:08]} 5. O-O {[%clk 0:14:23]}  Ngf6 {[%clk 0:16:08]} 6. Qe2 {[%clk 0:14:23]}  e6 {[%clk 0:16:08]} 7. c3 {[%clk 0:14:23]}  Be7 {[%clk 0:16:08]} 8. d4 {[%clk 0:14:23]}  O-O {[%clk 0:16:08]} 9. Rd1 {[%clk 0:14:23]}  cxd4 {[%clk 0:16:08]} 10. cxd4 {[%clk 0:14:23]}  Rc8 {[%clk 0:16:08]} 11. Nc3 {[%clk 0:14:23]}  Nb6 {[%clk 0:16:08]} 12. a4 {[%clk 0:14:23]}  a6 {[%clk 0:16:08]} 13. a5 {[%clk 0:14:24]}  Nc4 {[%clk 0:16:06]} 14. e5 {[%clk 0:14:24]}  Nd5 {[%clk 0:16:06]} 15. Nxd5 {[%clk 0:14:24]}  exd5 {[%clk 0:16:06]} 16. Qe1 {[%clk 0:11:48]}  b6 {[%clk 0:13:21]} 17. axb6 {[%clk 0:11:28]}  Qxb6 {[%clk 0:13:21]} 18. e6 {[%clk 0:11:28]}  Bf6 {[%clk 0:13:21]} 19. Bg5 {[%clk 0:11:28]}  Rfe8 {[%clk 0:13:21]} 20. Bxf6 {[%clk 0:11:28]}  Rxe6 {[%clk 0:07:57]} 21. Qc3 {[%clk 0:11:20]}  Qb7 {[%clk 0:04:55]} 22. Rdc1 {[%clk 0:11:20]}  Rxf6 {[%clk 0:04:55]} 23. b3 {[%clk 0:11:20]}  Nb6 {[%clk 0:04:55]} 24. Qb4 {[%clk 0:11:20]}  Rxc1+ {[%clk 0:04:55]} 25. Rxc1 {[%clk 0:11:20]}  h6 {[%clk 0:04:06]} 26. h3 {[%clk 0:07:36]}  Re6 {[%clk 0:04:06]} 27. Nh2 {[%clk 0:07:36]}  Kh7 {[%clk 0:04:06]} 28. Ng4 {[%clk 0:07:36]}  h5 {[%clk 0:02:55]} 29. Ne3 {[%clk 0:07:03]}  g6 {[%clk 0:02:55]} 30. Nf1 {[%clk 0:07:03]}  Kg7 {[%clk 0:02:55]} 31. Nd2 {[%clk 0:06:01]}  Qb8 {[%clk 0:01:52]} 32. Rc6 {[%clk 0:02:58]}  Nd7 {[%clk 0:01:00]} 33. Qxb8 {[%clk 0:02:58]}  Nxb8 {[%clk 0:01:00]} 34. Rb6 {[%clk 0:02:58]}  Nd7 {[%clk 0:01:00]} 35. Rxa6 {[%clk 0:02:58]}  Re1+ {[%clk 0:01:00]} 36. Kh2 {[%clk 0:02:58]}  Re2 {[%clk 0:01:00]} 37. Rxd6 {[%clk 0:02:58]}  Nf6 {[%clk 0:01:00]} 38. Nf3 {[%clk 0:02:58]}  Rxf2 {[%clk 0:01:00]} 39. Ne5 {[%clk 0:02:00]}  Rd2 {[%clk 0:00:45]} 40. Nf3 {[%clk 0:02:00]}  Rb2 {[%clk 0:00:45]} 41. Rb6 {[%clk 0:02:00]}  Ne4 {[%clk 0:00:45]} 42. Rb5 {[%clk 0:02:00]}  g5 {[%clk 0:00:45]} 43. Rxd5 {[%clk 0:02:00]}  f6 {[%clk 0:00:45]} 44. Rd7+ {[%clk 0:02:00]}  Kg6 {[%clk 0:00:45]} 45. Re7 {[%clk 0:02:00]}  Nc3 {[%clk 0:00:25]} 46. Re3 {[%clk 0:02:11]}  Nd5 {[%clk 0:00:25]} 47. Rd3 {[%clk 0:02:11]}  g4 {[%clk 0:00:25]} 48. hxg4 {[%clk 0:02:11]}  hxg4 {[%clk 0:00:25]} 49. Rd2 {[%clk 0:02:11]}  Rxb3 {[%clk 0:00:25]} 50. Nh4+ {[%clk 0:02:11]}  Kg5 {[%clk 0:00:25]} 51. g3 {[%clk 0:02:11]}  f5 {[%clk 0:00:25]} 52. Ng2 {[%clk 0:02:11]}  Nf6 {[%clk 0:00:25]} 53. d5 {[%clk 0:01:00]}  Ne4 {[%clk 0:00:51]} 54. Rd4 {[%clk 0:01:00]}  Nxg3 {[%clk 0:00:51]} 55. d6 {[%clk 0:01:00]}  Ne2 {[%clk 0:00:51]} 56. d7 {[%clk 0:01:00]}  Rh3# {[%clk 0:00:51]} 0-1


[Site "http://www.Chess.com"]